Workbook

Sheet 入力データ1
A1: 1 | B1: =A1+1 -> 2 | C1: =B1+1 -> 3 | D1: 4 | E1: =D1+1 -> 5 | F1: =E1+1 -> 6 | G1: =F1+1 -> 7 | H1: =G1+1 -> 8
B3: ケース 番号 | C3: 曲げモーメント M(kNm) | D3: 軸力 N(kN) | E3: 断面形状 | F3: 断面諸元番号 ipr(i) | G3: 計算種類 ical(i) | H3: 説明欄 | I3: 中立軸 探索範囲 kk1 | J3: 中立軸 探索範囲 kk2 | K3: 軸力作用位置 iflag1 | L3: 中立軸 チェック用 iflag2
B4: 1 | C4: 2000 | D4: 1000 | E4: 円形 | F4: 1 | G4: 0 | H4: ①
B5: 2 | C5: 2000 | D5: 2000 | E5: 円形 | F5: 1 | G5: 0 | H5: ②
B6: 3 | C6: 2000 | D6: 3000 | E6: 円形 | F6: 1 | G6: 0 | H6: ③
B7: 4 | C7: 1000 | D7: 5000 | E7: 円形 | F7: 1 | G7: 0 | H7: ④全断面圧縮
B8: 5 | C8: 1000 | D8: -3000 | E8: 円形 | F8: 1 | G8: 0 | H8: ⑤全断面引張

Sheet 入力データ2(矩形) (hidden)
A1: 1 | B1: =A1+1 -> 2 | C1: =B1+1 -> 3 | D1: 4 | E1: 5 | F1: =E1+1 -> 6 | G1: =F1+1 -> 7 | H1: =G1+1 -> 8 | I1: =H1+1 -> 9 | J1: =I1+1 -> 10 | K1: =J1+1 -> 11 | L1: =K1+1 -> 12 | M1: =L1+1 -> 13 | N1: =M1+1 -> 14
B2: 矩形断面 | I2: 第1段 | K2: 第2段 | M2: 第3段
B3: 通し番号 | C3: 断面諸元番号 | D3: 全高 h_inp(i) (cm) | E3: 断面幅 b_inp(i) (cm) | F3: コン許容 σca(N/mm2) | G3: 鉄筋許容 σsa(N/mm2) | H3: 鉄筋段数 ndan_inp(i) | I3: 被り cv_inp(i,1) (cm) | J3: 鉄筋量 ast_inp(i,1) (cm2) | K3: 被り cv_inp(i,2) (cm) | L3: 鉄筋量 ast_inp(i,2) (cm2) | M3: 被り cv_inp(i,3) (cm) | N3: 鉄筋量 ast_inp(i,3) (cm2)
B4: 1 | C4: 1 | D4: 40 | E4: 100 | F4: 8 | G4: 160 | H4: 2 | I4: 12 | J4: =4*2.865 -> 11.46 | K4: 28 | L4: =4*2.865 -> 11.46 | O4: 常時 4-D19 | P4: ctc250mm
B5: 2 | C5: 2 | D5: 40 | E5: 100 | F5: =F4*1.5 -> 12 | G5: =G4*1.5 -> 240 | H5: 2 | I5: 12 | J5: 11.46 | K5: 28 | L5: =4*2.865 -> 11.46 | O5: 地震時 4-D19 | P5: ctc250mm

Sheet 入力データ2(円形)
A1: 1 | B1: =A1+1 -> 2 | C1: =B1+1 -> 3 | D1: 4 | E1: =D1+1 -> 5 | F1: =E1+1 -> 6 | G1: =F1+1 -> 7 | H1: =G1+1 -> 8 | I1: =H1+1 -> 9 | J1: =I1+1 -> 10 | K1: =J1+1 -> 11 | L1: =K1+1 -> 12 | M1: =L1+1 -> 13
B2: 円形断面 | H2: 第1段 | J2: 第2段 | L2: 第3段
B3: 通し番号 | C3: 断面諸元番号 | D3: 半径 rc_inp(i) (cm) | E3: コン許容 σca(N/mm2) | F3: 鉄筋許容 σsa(N/mm2) | G3: 鉄筋段数 ndan_inp(i) | H3: 半径 rs_inp(i,1) (cm) | I3: 鉄筋量 ast_inp(i,1) (cm2) | J3: 被り rs_inp(i,2) (cm) | K3: 鉄筋量 ast_inp(i,2) (cm2) | L3: 被り rs_inp(i,3) (cm) | M3: 鉄筋量 ast_inp(i,3) (cm2)
B4: 1 | C4: 1 | D4: 100 | E4: 8 | F4: 180 | G4: 1 | H4: 85 | I4: 154.84

Sheet 入力データ2(T形) (hidden)
A1: 1 | B1: =A1+1 -> 2 | C1: =B1+1 -> 3 | D1: 4 | E1: 5 | F1: =E1+1 -> 6 | G1: =F1+1 -> 7 | H1: =G1+1 -> 8 | I1: =H1+1 -> 9 | J1: =I1+1 -> 10 | K1: =J1+1 -> 11 | L1: =K1+1 -> 12 | M1: =L1+1 -> 13 | N1: =M1+1 -> 14 | O1: =N1+1 -> 15 | P1: =O1+1 -> 16
B2: T形断面 | K2: 第1段 | M2: 第2段 | O2: 第3段
B3: 通し番号 | C3: 断面諸元番号 | D3: 全高 h_inp(i) (cm) | E3: フランジ幅 b_inp(i) (cm) | F3: フランジ厚 t_inp(i) (cm) | G3: ウェブ幅 bw_inp(i) (cm) | H3: コン許容 σca(N/mm2) | I3: 鉄筋許容 σsa(N/mm2) | J3: 鉄筋段数 ndan_inp(i) | K3: 被り cv_inp(i,1) (cm) | L3: 鉄筋量 ast_inp(i,1) (cm2) | M3: 被り cv_inp(i,2) (cm) | N3: 鉄筋量 ast_inp(i,2) (cm2) | O3: 被り cv_inp(i,3) (cm) | P3: 鉄筋量 ast_inp(i,3) (cm2)
B4: 1 | C4: 1 | D4: 40 | E4: 100 | F4: 15 | G4: 50 | H4: 8 | I4: 180 | J4: 2 | K4: 8 | L4: 9.95 | M4: 32 | N4: 16.3

Sheet 応力度
B2: ケース番号 | C2: 説明欄 | D2: 断面形状 | E2: 計算種類 | F2: 断面諸元番号 | G2: mf(kNm) | H2: nf(kN) | I2: x(cm) | J2: σc(N/mm2) | K2: σs(N/mm2) | L2: σs'(N/mm2) | M2: σca(N/mm2) | N2: σsa(N/mm2) | O2: 照査値σc/σca | P2: 照査値σs/σsa | Q2: 判定(σc) | R2: 判定(σs) | S2: 最外引張鉄筋量(cm2) | T2: 最外圧縮鉄筋量(cm2) | U2: 繰り返し数it | V2: σc1(N/mm2)
B3: 1 | C3: ① | D3: 円形 | E3: 0 | F3: 1 | G3: 2000 | H3: 1000 | I3: 61.55164242 | J3: 5.155113693 | K3: 155.0869222 | L3: -58.48235722 | M3: 8 | N3: 180 | O3: 0.6443892117 | P3: 0.8615940122 | Q3: OK | R3: OK | U3: 1
B4: 2 | C4: ② | D4: 円形 | E4: 0 | F4: 1 | G4: 2000 | H4: 2000 | I4: 79.99991417 | J4: 4.625347617 | K4: 91.06170334 | L4: -56.37141012 | M4: 8 | N4: 180 | O4: 0.5781684521 | P4: 0.5058983519 | Q4: OK | R4: OK | U4: 1
B5: 3 | C5: ③ | D5: 円形 | E5: 0 | F5: 1 | G5: 2000 | H5: 3000 | I5: 105.6045818 | J5: 4.109862132 | K5: 46.34802064 | L5: -52.89150338 | M5: 8 | N5: 180 | O5: 0.5137327665 | P5: 0.2574890035 | Q5: OK | R5: OK | U5: 1
B6: 4 | C6: ④全断面圧縮 | D6: 円形 | E6: 0 | F6: 1 | G6: 1000 | H6: 5000 | I6: 228.8290977 | J6: 2.632334575 | K6: -7.562817658 | L6: -36.89673207 | M6: 8 | N6: 180 | O6: 0.3290418219 | P6: -0.04201565366 | Q6: OK | R6: － | U6: 1
B7: 5 | C7: ⑤全断面引張 | D7: 円形 | E7: 0 | F7: 1 | G7: 1000 | H7: -3000 | I7: -8.37500155 | J7: -0.9981656351 | K7: 345.7079024 | L7: 41.78886976 | M7: 8 | N7: 180 | O7: -0.1247707044 | P7: 1.920599458 | Q7: － | R7: NG | U7: 1

Sheet 解析解との比較
Z1: 解析解
B2: ケース番号 | C2: 説明欄 | D2: 断面形状 | E2: 計算種類 | F2: 断面諸元番号 | G2: mf(kNm) | H2: nf(kN) | I2: x(cm) | J2: σc(N/mm2) | K2: σs(N/mm2) | L2: σs'(N/mm2) | M2: σca(N/mm2) | N2: σsa(N/mm2) | O2: 照査値σc/σca | P2: 照査値σs/σsa | Q2: 判定(σc) | R2: 判定(σs) | S2: 最外引張鉄筋量(cm2) | T2: 最外圧縮鉄筋量(cm2) | U2: 繰り返し数it | V2: σc1(N/mm2) | Z2: x (cm) | AA2: σc (N/mm2) | AB2: σs (N/mm2) | AC2: 照査値σc/σca | AD2: 照査値σs/σsa | AE2: 比 x | AF2: 比 σc | AG2: 比 σs | AH2: 比 σc/σca | AI2: 比 σs/σsa
B3: =応力度!B3 -> 1 | C3: =応力度!C3 -> ① | D3: =応力度!D3 -> 円形 | E3: =応力度!E3 -> 0 | F3: =応力度!F3 -> 1 | G3: =応力度!G3 -> 2000 | H3: =応力度!H3 -> 1000 | I3: =応力度!I3 -> 61.55164242 | J3: =応力度!J3 -> 5.155113693 | K3: =応力度!K3 -> 155.0869222 | L3: =応力度!L3 -> -58.48235722 | M3: =応力度!M3 -> 8 | N3: =応力度!N3 -> 180 | O3: =応力度!O3 -> 0.6443892117 | P3: =応力度!P3 -> 0.8615940122 | Q3: =応力度!Q3 -> OK | R3: =応力度!R3 -> OK | S3: =応力度!S3 -> 0 | T3: =応力度!T3 -> 0 | U3: =応力度!U3 -> 1 | V3: =応力度!V3 -> 0 | X3: N=1000kN | Z3: 61.55147854 | AA3: 5.155105198 | AB3: 155.0872854 | AC3: =AA3/M3 -> 0.6443881497 | AD3: =AB3/N3 -> 0.8615960299 | AE3: =I3/Z3 -> 1.000002662 | AF3: =J3/AA3 -> 1.000001648 | AG3: =K3/AB3 -> 0.9999976582 | AH3: =O3/AC3 -> 1.000001648 | AI3: =P3/AD3 -> 0.9999976582 | AJ3: マクロ
B4: =応力度!B4 -> 2 | C4: =応力度!C4 -> ② | D4: =応力度!D4 -> 円形 | E4: =応力度!E4 -> 0 | F4: =応力度!F4 -> 1 | G4: =応力度!G4 -> 2000 | H4: =応力度!H4 -> 2000 | I4: =応力度!I4 -> 79.99991417 | J4: =応力度!J4 -> 4.625347617 | K4: =応力度!K4 -> 91.06170334 | L4: =応力度!L4 -> -56.37141012 | M4: =応力度!M4 -> 8 | N4: =応力度!N4 -> 180 | O4: =応力度!O4 -> 0.5781684521 | P4: =応力度!P4 -> 0.5058983519 | Q4: =応力度!Q4 -> OK | R4: =応力度!R4 -> OK | S4: =応力度!S4 -> 0 | T4: =応力度!T4 -> 0 | U4: =応力度!U4 -> 1 | V4: =応力度!V4 -> 0 | X4: N=2000kN | Z4: 80.00012371 | AA4: 4.625347617 | AB4: 91.06128311 | AC4: =AA4/M4 -> 0.5781684521 | AD4: =AB4/N4 -> 0.5058960173 | AE4: =I4/Z4 -> 0.9999973808 | AF4: =J4/AA4 -> 1 | AG4: =K4/AB4 -> 1.000004615 | AH4: =O4/AC4 -> 1 | AI4: =P4/AD4 -> 1.000004615 | AJ4: マクロ
B5: =応力度!B5 -> 3 | C5: =応力度!C5 -> ③ | D5: =応力度!D5 -> 円形 | E5: =応力度!E5 -> 0 | F5: =応力度!F5 -> 1 | G5: =応力度!G5 -> 2000 | H5: =応力度!H5 -> 3000 | I5: =応力度!I5 -> 105.6045818 | J5: =応力度!J5 -> 4.109862132 | K5: =応力度!K5 -> 46.34802064 | L5: =応力度!L5 -> -52.89150338 | M5: =応力度!M5 -> 8 | N5: =応力度!N5 -> 180 | O5: =応力度!O5 -> 0.5137327665 | P5: =応力度!P5 -> 0.2574890035 | Q5: =応力度!Q5 -> OK | R5: =応力度!R5 -> OK | S5: =応力度!S5 -> 0 | T5: =応力度!T5 -> 0 | U5: =応力度!U5 -> 1 | V5: =応力度!V5 -> 0 | X5: N=3000kN | Z5: 105.6048786 | AA5: 4.109856804 | AB5: 46.34765703 | AC5: 0.5137321005 | AD5: 0.2574869835 | AE5: 0.9999971894 | AF5: 1.000001296 | AG5: 1.000007845 | AH5: 1.000001296 | AI5: 1.000007845 | AJ5: マクロ
B6: =応力度!B6 -> 4 | C6: =応力度!C6 -> ④全断面圧縮 | D6: =応力度!D6 -> 円形 | E6: =応力度!E6 -> 0 | F6: =応力度!F6 -> 1 | G6: =応力度!G6 -> 1000 | H6: =応力度!H6 -> 5000 | I6: =応力度!I6 -> 228.8290977 | J6: =応力度!J6 -> 2.632334575 | K6: =応力度!K6 -> -7.562817658 | L6: =応力度!L6 -> -36.89673207 | M6: =応力度!M6 -> 8 | N6: =応力度!N6 -> 180 | O6: =応力度!O6 -> 0.3290418219 | P6: =応力度!P6 -> -0.04201565366 | Q6: =応力度!Q6 -> OK | R6: =応力度!R6 -> － | S6: =応力度!S6 -> 0 | T6: =応力度!T6 -> 0 | U6: =応力度!U6 -> 1 | V6: =応力度!V6 -> 0 | X6: 全断面圧縮 | Z6: － | AA6: =AG27 -> 2.632333382 | AB6: － | AC6: =AA6/M6 -> 0.3290416728 | AD6: － | AE6: － | AF6: 1.000000453 | AG6: － | AH6: 1.000000453 | AI6: － | AJ6: 解析式
B7: =応力度!B7 -> 5 | C7: =応力度!C7 -> ⑤全断面引張 | D7: =応力度!D7 -> 円形 | E7: =応力度!E7 -> 0 | F7: =応力度!F7 -> 1 | G7: =応力度!G7 -> 1000 | H7: =応力度!H7 -> -3000 | I7: =応力度!I7 -> -8.37500155 | J7: =応力度!J7 -> -0.9981656351 | K7: =応力度!K7 -> 345.7079024 | L7: =応力度!L7 -> 41.78886976 | M7: =応力度!M7 -> 8 | N7: =応力度!N7 -> 180 | O7: =応力度!O7 -> -0.1247707044 | P7: =応力度!P7 -> 1.920599458 | Q7: =応力度!Q7 -> － | R7: =応力度!R7 -> NG | S7: =応力度!S7 -> 0 | T7: =応力度!T7 -> 0 | U7: =応力度!U7 -> 1 | V7: =応力度!V7 -> 0 | X7: 全断面引張 | Z7: － | AA7: － | AB7: =AJ28 -> 345.7079034 | AC7: － | AD7: =AB7/N7 -> 1.920599463 | AE7: － | AF7: － | AG7: 0.9999999971 | AH7: － | AI7: 1.000007845 | AJ7: 解析式
AC12: 本マクロ | AF12: 解析解
Z13: ケース番号 | AA13: M (kNm) | AB13: N （kN） | AC13: x （cm） | AD13: σc (N/mm2) | AE13: σs (N/mm2) | AF13: x (cm) | AG13: σc (N/mm2) | AH13: σs (N/mm2) | AI13: 比 (x) | AJ13: 比 (σc) | AK13: 比 (σs) | AL13: 備考
Z14: =B3 -> 1 | AA14: =G3 -> 2000 | AB14: =H3 -> 1000 | AC14: =I3 -> 61.55164242 | AD14: =J3 -> 5.155113693 | AE14: =K3 -> 155.0869222 | AF14: =Z3 -> 61.55147854 | AG14: =AA3 -> 5.155105198 | AH14: 155.0872854 | AI14: =AE3 -> 1.000002662 | AJ14: =AF3 -> 1.000001648 | AK14: 0.9999976582 | AL14: =X3 -> N=1000kN
Z15: =B4 -> 2 | AA15: =G4 -> 2000 | AB15: 2000 | AC15: 79.99991417 | AD15: 4.625347617 | AE15: 91.06170334 | AF15: =Z4 -> 80.00012371 | AG15: =AA4 -> 4.625347617 | AH15: =AB4 -> 91.06128311 | AI15: =AE4 -> 0.9999973808 | AJ15: =AF4 -> 1 | AK15: =AG4 -> 1.000004615 | AL15: =X4 -> N=2000kN
Z16: 3 | AA16: =G5 -> 2000 | AB16: 3000 | AC16: 105.6045818 | AD16: 4.109862132 | AE16: 46.34802064 | AF16: 105.6048786 | AG16: 4.109856804 | AH16: 46.34765703 | AI16: 0.9999971894 | AJ16: 1.000001296 | AK16: 1.000007845 | AL16: N=3000kN
Z17: 4 | AA17: =G6 -> 1000 | AB17: 5000 | AC17: 228.8290977 | AD17: 2.632334575 | AE17: -7.562817658 | AF17: － | AG17: 2.632333382 | AH17: － | AI17: － | AJ17: 1.000000453 | AK17: － | AL17: 全断面圧縮
Z18: 5 | AA18: =G7 -> 1000 | AB18: -3000 | AC18: -8.37500155 | AD18: -0.9981656351 | AE18: 345.7079024 | AF18: － | AG18: － | AH18: 345.7079034 | AI18: － | AJ18: － | AK18: 0.9999999971 | AL18: 全断面引張
Z24: 全断面圧縮・引張
Z25: ケース4,5
Z26: rc (cm) | AA26: rs (cm) | AB26: As (cm2) | AC26: M (kNm) | AD26: N (kN) | AE26: Ag (cm2) | AF26: Ig (cm4) | AG26: σc (N/mm2) | AH26: σｔ (N/mm2) | AI26: σs' (N/mm2) | AJ26: σs (N/mm2)
Z27: 100 | AA27: 85 | AB27: 154.84 | AC27: 1000 | AD27: 5000 | AE27: =PI()*Z27^2+15*AB27 -> 33738.52654 | AF27: =PI()*Z27^4/4+15*AB27/2*AA27^2 -> 86930208.84 | AG27: =(AD27/AE27+AC27*100/AF27*Z27)*10 -> 2.632333382 | AH27: =(AD27/AE27-AC27*100/AF27*Z27)*10 -> 0.3316371956 | AI27: =-15*(AG27-(Z27-AA27)/2/Z27*(AG27-AH27)) -> -36.89671753 | AJ27: =-15*(AG27-(Z27+AA27)/2/Z27*(AG27-AH27)) -> -7.562841144
Z28: =Z27 -> 100 | AA28: 85 | AB28: 154.84 | AC28: 1000 | AD28: -3000 | AE28: =15*AB28 -> 2322.6 | AF28: =15*AB28/2*AA28^2 -> 8390392.5 | AG28: =(AD28/AE28+AC28*100/AF28*Z28)*10 -> -0.9981654613 | AH28: =(AD28/AE28-AC28*100/AF28*Z28)*10 -> -24.8349526 | AI28: =-15*(AG28-(Z28-AA28)/2/Z28*(AG28-AH28)) -> 41.78886745 | AJ28: =-15*(AG28-(Z28+AA28)/2/Z28*(AG28-AH28)) -> 345.7079034

Sheet 中立軸計算
B2: ケース番号 | C2: 1 | D2: 2 | E2: 3 | F2: 4 | G2: 5
B3: nrep | C3: 21 | D3: 20 | E3: 20 | F3: 19 | G3: 24
B4: 以下、xj(icase,jc) | C4: -10 | D4: -10 | E4: -10 | F4: -10 | G4: -10
C5: 195 | D5: 195 | E5: 195 | F5: 195 | G5: 195
C6: 92.5 | D6: 92.5 | E6: 92.5 | F6: 297.5 | G6: 92.5
C7: 41.25 | D7: 41.25 | E7: 143.75 | F7: 246.25 | G7: 41.25
C8: 66.875 | D8: 66.875 | E8: 118.125 | F8: 220.625 | G8: 15.625
C9: 54.0625 | D9: 79.6875 | E9: 105.3125 | F9: 233.4375 | G9: 2.8125
C10: 60.46875 | D10: 86.09375 | E10: 111.71875 | F10: 227.03125 | G10: -3.59375
C11: 63.671875 | D11: 82.890625 | E11: 108.515625 | F11: 230.234375 | G11: -6.796875
C12: 62.0703125 | D12: 81.2890625 | E12: 106.9140625 | F12: 228.6328125 | G12: -8.3984375
C13: 61.26953125 | D13: 80.48828125 | E13: 106.1132812 | F13: 229.4335938 | G13: -7.59765625
C14: 61.66992188 | D14: 80.08789062 | E14: 105.7128906 | F14: 229.0332031 | G14: -7.998046875
C15: 61.46972656 | D15: 79.88769531 | E15: 105.5126953 | F15: 228.8330078 | G15: -8.198242188
C16: 61.56982422 | D16: 79.98779297 | E16: 105.612793 | F16: 228.7329102 | G16: -8.298339844
C17: 61.51977539 | D17: 80.0378418 | E17: 105.5627441 | F17: 228.782959 | G17: -8.348388672
C18: 61.5447998 | D18: 80.01281738 | E18: 105.5877686 | F18: 228.8079834 | G18: -8.373413086
C19: 61.55731201 | D19: 80.00030518 | E19: 105.6002808 | F19: 228.8204956 | G19: -8.385925293
C20: 61.55105591 | D20: 79.99404907 | E20: 105.6065369 | F20: 228.8267517 | G20: -8.379669189
C21: 61.55418396 | D21: 79.99717712 | E21: 105.6034088 | F21: 228.8298798 | G21: -8.376541138
C22: 61.55261993 | D22: 79.99874115 | E22: 105.6049728 | F22: 228.8283157 | G22: -8.374977112
C23: 61.55183792 | D23: 79.99952316 | E23: 105.6041908 | G23: -8.375759125
C24: 61.55144691 | G24: -8.375368118
G25: -8.375172615
G26: -8.375074863
G27: -8.375025988

Sheet チェック用
B2: 1 (X) | C2: 1 (FX) | D2: 2 (X) | E2: 2 (FX) | F2: 3 (X) | G2: 3 (FX) | H2: 4 (X) | I2: 4 (FX) | J2: 5 (X) | K2: 5 (FX)
B3: -420 | C3: -249940792500 | D3: -420 | E3: -258331185000 | F3: -420 | G3: -266721577500 | H3: -420 | I3: -162727162500 | J3: -420 | K3: -95604022500
B4: -419.18 | C4: -2.495598861e+11 | D4: -419.18 | E4: -2.579502786e+11 | F4: -419.18 | G4: -2.663406711e+11 | H4: -419.18 | I4: -162536709300 | J4: -419.18 | K4: -9.54135693e+10
B5: -418.36 | C5: -249178979700 | D5: -418.36 | E5: -257569372200 | F5: -418.36 | G5: -265959764700 | H5: -418.36 | I5: -162346256100 | J5: -418.36 | K5: -95223116100
B6: -417.54 | C6: -2.487980733e+11 | D6: -417.54 | E6: -2.571884658e+11 | F6: -417.54 | G6: -2.655788583e+11 | H6: -417.54 | I6: -162155802900 | J6: -417.54 | K6: -9.50326629e+10
B7: -416.72 | C7: -248417166900 | D7: -416.72 | E7: -256807559400 | F7: -416.72 | G7: -265197951900 | H7: -416.72 | I7: -161965349700 | J7: -416.72 | K7: -94842209700
B8: -415.9 | C8: -2.480362605e+11 | D8: -415.9 | E8: -2.56426653e+11 | F8: -415.9 | G8: -2.648170455e+11 | H8: -415.9 | I8: -161774896500 | J8: -415.9 | K8: -9.46517565e+10
B9: -415.08 | C9: -2.476553541e+11 | D9: -415.08 | E9: -2.560457466e+11 | F9: -415.08 | G9: -2.644361391e+11 | H9: -415.08 | I9: -1.615844433e+11 | J9: -415.08 | K9: -9.44613033e+10
B10: -414.26 | C10: -2.472744477e+11 | D10: -414.26 | E10: -2.556648402e+11 | F10: -414.26 | G10: -2.640552327e+11 | H10: -414.26 | I10: -161393990100 | J10: -414.26 | K10: -9.42708501e+10
B11: -413.44 | C11: -2.468935413e+11 | D11: -413.44 | E11: -2.552839338e+11 | F11: -413.44 | G11: -2.636743263e+11 | H11: -413.44 | I11: -161203536900 | J11: -413.44 | K11: -9.40803969e+10
B12: -412.62 | C12: -2.465126349e+11 | D12: -412.62 | E12: -2.549030274e+11 | F12: -412.62 | G12: -2.632934199e+11 | H12: -412.62 | I12: -1.610130837e+11 | J12: -412.62 | K12: -9.38899437e+10
B13: -411.8 | C13: -246131728500 | D13: -411.8 | E13: -254522121000 | F13: -411.8 | G13: -262912513500 | H13: -411.8 | I13: -160822630500 | J13: -411.8 | K13: -93699490500
B14: -410.98 | C14: -2.457508221e+11 | D14: -410.98 | E14: -2.541412146e+11 | F14: -410.98 | G14: -2.625316071e+11 | H14: -410.98 | I14: -1.606321773e+11 | J14: -410.98 | K14: -9.35090373e+10
B15: -410.16 | C15: -2.453699157e+11 | D15: -410.16 | E15: -2.537603082e+11 | F15: -410.16 | G15: -2.621507007e+11 | H15: -410.16 | I15: -160441724100 | J15: -410.16 | K15: -9.33185841e+10
B16: -409.34 | C16: -2.449890093e+11 | D16: -409.34 | E16: -2.533794018e+11 | F16: -409.34 | G16: -2.617697943e+11 | H16: -409.34 | I16: -1.602512709e+11 | J16: -409.34 | K16: -9.31281309e+10
B17: -408.52 | C17: -2.446081029e+11 | D17: -408.52 | E17: -2.529984954e+11 | F17: -408.52 | G17: -2.613888879e+11 | H17: -408.52 | I17: -1.600608177e+11 | J17: -408.52 | K17: -9.29376777e+10
B18: -407.7 | C18: -2.442271965e+11 | D18: -407.7 | E18: -2.52617589e+11 | F18: -407.7 | G18: -2.610079815e+11 | H18: -407.7 | I18: -1.598703645e+11 | J18: -407.7 | K18: -9.27472245e+10
B19: -406.88 | C19: -2.438462901e+11 | D19: -406.88 | E19: -2.522366826e+11 | F19: -406.88 | G19: -2.606270751e+11 | H19: -406.88 | I19: -159679911300 | J19: -406.88 | K19: -9.25567713e+10
B20: -406.06 | C20: -2.434653837e+11 | D20: -406.06 | E20: -2.518557762e+11 | F20: -406.06 | G20: -2.602461687e+11 | H20: -406.06 | I20: -1.594894581e+11 | J20: -406.06 | K20: -9.23663181e+10
B21: -405.24 | C21: -2.430844773e+11 | D21: -405.24 | E21: -2.514748698e+11 | F21: -405.24 | G21: -2.598652623e+11 | H21: -405.24 | I21: -159299004900 | J21: -405.24 | K21: -9.21758649e+10
B22: -404.42 | C22: -242703570900 | D22: -404.42 | E22: -251093963400 | F22: -404.42 | G22: -259484355900 | H22: -404.42 | I22: -159108551700 | J22: -404.42 | K22: -91985411700
B23: -403.6 | C23: -2.423226645e+11 | D23: -403.6 | E23: -2.50713057e+11 | F23: -403.6 | G23: -2.591034495e+11 | H23: -403.6 | I23: -158918098500 | J23: -403.6 | K23: -9.17949585e+10
B24: -402.78 | C24: -2.419417581e+11 | D24: -402.78 | E24: -2.503321506e+11 | F24: -402.78 | G24: -2.587225431e+11 | H24: -402.78 | I24: -1.587276453e+11 | J24: -402.78 | K24: -9.16045053e+10
B25: -401.96 | C25: -2.415608517e+11 | D25: -401.96 | E25: -2.499512442e+11 | F25: -401.96 | G25: -2.583416367e+11 | H25: -401.96 | I25: -1.585371921e+11 | J25: -401.96 | K25: -9.14140521e+10
B26: -401.14 | C26: -241179945300 | D26: -401.14 | E26: -249570337800 | F26: -401.14 | G26: -257960730300 | H26: -401.14 | I26: -158346738900 | J26: -401.14 | K26: -91223598900
B27: -400.32 | C27: -2.407990389e+11 | D27: -400.32 | E27: -2.491894314e+11 | F27: -400.32 | G27: -2.575798239e+11 | H27: -400.32 | I27: -158156285700 | J27: -400.32 | K27: -9.10331457e+10
B28: -399.5 | C28: -240418132500 | D28: -399.5 | E28: -248808525000 | F28: -399.5 | G28: -257198917500 | H28: -399.5 | I28: -157965832500 | J28: -399.5 | K28: -90842692500
B29: -398.68 | C29: -2.400372261e+11 | D29: -398.68 | E29: -2.484276186e+11 | F29: -398.68 | G29: -2.568180111e+11 | H29: -398.68 | I29: -1.577753793e+11 | J29: -398.68 | K29: -9.06522393e+10
B30: -397.86 | C30: -2.396563197e+11 | D30: -397.86 | E30: -2.480467122e+11 | F30: -397.86 | G30: -2.564371047e+11 | H30: -397.86 | I30: -1.575849261e+11 | J30: -397.86 | K30: -9.04617861e+10
B31: -397.04 | C31: -239275413300 | D31: -397.04 | E31: -247665805800 | F31: -397.04 | G31: -256056198300 | H31: -397.04 | I31: -157394472900 | J31: -397.04 | K31: -90271332900
B32: -396.22 | C32: -2.388945069e+11 | D32: -396.22 | E32: -2.472848994e+11 | F32: -396.22 | G32: -2.556752919e+11 | H32: -396.22 | I32: -1.572040197e+11 | J32: -396.22 | K32: -9.00808797e+10
B33: -395.4 | C33: -2.385136005e+11 | D33: -395.4 | E33: -2.46903993e+11 | F33: -395.4 | G33: -2.552943855e+11 | H33: -395.4 | I33: -1.570135665e+11 | J33: -395.4 | K33: -8.98904265e+10
B34: -394.58 | C34: -2.381326941e+11 | D34: -394.58 | E34: -2.465230866e+11 | F34: -394.58 | G34: -2.549134791e+11 | H34: -394.58 | I34: -156823113300 | J34: -394.58 | K34: -8.96999733e+10
B35: -393.76 | C35: -2.377517877e+11 | D35: -393.76 | E35: -2.461421802e+11 | F35: -393.76 | G35: -2.545325727e+11 | H35: -393.76 | I35: -1.566326601e+11 | J35: -393.76 | K35: -8.95095201e+10
B36: -392.94 | C36: -2.373708813e+11 | D36: -392.94 | E36: -2.457612738e+11 | F36: -392.94 | G36: -2.541516663e+11 | H36: -392.94 | I36: -1.564422069e+11 | J36: -392.94 | K36: -8.93190669e+10
B37: -392.12 | C37: -2.369899749e+11 | D37: -392.12 | E37: -2.453803674e+11 | F37: -392.12 | G37: -2.537707599e+11 | H37: -392.12 | I37: -1.562517537e+11 | J37: -392.12 | K37: -8.91286137e+10
B38: -391.3 | C38: -2.366090685e+11 | D38: -391.3 | E38: -2.44999461e+11 | F38: -391.3 | G38: -2.533898535e+11 | H38: -391.3 | I38: -156061300500 | J38: -391.3 | K38: -8.89381605e+10
B39: -390.48 | C39: -236228162100 | D39: -390.48 | E39: -244618554600 | F39: -390.48 | G39: -253008947100 | H39: -390.48 | I39: -155870847300 | J39: -390.48 | K39: -88747707300
B40: -389.66 | C40: -2.358472557e+11 | D40: -389.66 | E40: -2.442376482e+11 | F40: -389.66 | G40: -2.526280407e+11 | H40: -389.66 | I40: -155680394100 | J40: -389.66 | K40: -8.85572541e+10
B41: -388.84 | C41: -235466349300 | D41: -388.84 | E41: -243856741800 | F41: -388.84 | G41: -252247134300 | H41: -388.84 | I41: -155489940900 | J41: -388.84 | K41: -88366800900
B42: -388.02 | C42: -2.350854429e+11 | D42: -388.02 | E42: -2.434758354e+11 | F42: -388.02 | G42: -2.518662279e+11 | H42: -388.02 | I42: -155299487700 | J42: -388.02 | K42: -8.81763477e+10
B43: -387.2 | C43: -234704536500 | D43: -387.2 | E43: -243094929000 | F43: -387.2 | G43: -251485321500 | H43: -387.2 | I43: -155109034500 | J43: -387.2 | K43: -87985894500
B44: -386.38 | C44: -2.343236301e+11 | D44: -386.38 | E44: -2.427140226e+11 | F44: -386.38 | G44: -2.511044151e+11 | H44: -386.38 | I44: -154918581300 | J44: -386.38 | K44: -8.77954413e+10
B45: -385.56 | C45: -2.339427237e+11 | D45: -385.56 | E45: -2.423331162e+11 | F45: -385.56 | G45: -2.507235087e+11 | H45: -385.56 | I45: -1.547281281e+11 | J45: -385.56 | K45: -8.76049881e+10
B46: -384.74 | C46: -233561817300 | D46: -384.74 | E46: -241952209800 | F46: -384.74 | G46: -250342602300 | H46: -384.74 | I46: -154537674900 | J46: -384.74 | K46: -87414534900
B47: -383.92 | C47: -233180910900 | D47: -383.92 | E47: -241571303400 | F47: -383.92 | G47: -249961695900 | H47: -383.92 | I47: -154347221700 | J47: -383.92 | K47: -87224081700
B48: -383.1 | C48: -232800004500 | D48: -383.1 | E48: -241190397000 | F48: -383.1 | G48: -249580789500 | H48: -383.1 | I48: -154156768500 | J48: -383.1 | K48: -87033628500
B49: -382.28 | C49: -232419098100 | D49: -382.28 | E49: -240809490600 | F49: -382.28 | G49: -249199883100 | H49: -382.28 | I49: -153966315300 | J49: -382.28 | K49: -86843175300
B50: -381.46 | C50: -2.320381917e+11 | D50: -381.46 | E50: -2.404285842e+11 | F50: -381.46 | G50: -2.488189767e+11 | H50: -381.46 | I50: -153775862100 | J50: -381.46 | K50: -8.66527221e+10
B51: -380.64 | C51: -2.316572853e+11 | D51: -380.64 | E51: -2.400476778e+11 | F51: -380.64 | G51: -2.484380703e+11 | H51: -380.64 | I51: -1.535854089e+11 | J51: -380.64 | K51: -8.64622689e+10
B52: -379.82 | C52: -2.312763789e+11 | D52: -379.82 | E52: -2.396667714e+11 | F52: -379.82 | G52: -2.480571639e+11 | H52: -379.82 | I52: -1.533949557e+11 | J52: -379.82 | K52: -8.62718157e+10
B53: -379 | C53: -2.308954725e+11 | D53: -379 | E53: -2.39285865e+11 | F53: -379 | G53: -2.476762575e+11 | H53: -379 | I53: -1.532045025e+11 | J53: -379 | K53: -8.60813625e+10
B54: -378.18 | C54: -2.305145661e+11 | D54: -378.18 | E54: -2.389049586e+11 | F54: -378.18 | G54: -2.472953511e+11 | H54: -378.18 | I54: -1.530140493e+11 | J54: -378.18 | K54: -8.58909093e+10
B55: -377.36 | C55: -2.301336597e+11 | D55: -377.36 | E55: -2.385240522e+11 | F55: -377.36 | G55: -2.469144447e+11 | H55: -377.36 | I55: -1.528235961e+11 | J55: -377.36 | K55: -8.57004561e+10
B56: -376.54 | C56: -2.297527533e+11 | D56: -376.54 | E56: -2.381431458e+11 | F56: -376.54 | G56: -2.465335383e+11 | H56: -376.54 | I56: -1.526331429e+11 | J56: -376.54 | K56: -8.55100029e+10
B57: -375.72 | C57: -2.293718469e+11 | D57: -375.72 | E57: -2.377622394e+11 | F57: -375.72 | G57: -2.461526319e+11 | H57: -375.72 | I57: -152442689700 | J57: -375.72 | K57: -8.53195497e+10
B58: -374.9 | C58: -228990940500 | D58: -374.9 | E58: -237381333000 | F58: -374.9 | G58: -245771725500 | H58: -374.9 | I58: -152252236500 | J58: -374.9 | K58: -85129096500
B59: -374.08 | C59: -2.286100341e+11 | D59: -374.08 | E59: -2.370004266e+11 | F59: -374.08 | G59: -2.453908191e+11 | H59: -374.08 | I59: -152061783300 | J59: -374.08 | K59: -8.49386433e+10
B60: -373.26 | C60: -228229127700 | D60: -373.26 | E60: -236619520200 | F60: -373.26 | G60: -245009912700 | H60: -373.26 | I60: -151871330100 | J60: -373.26 | K60: -84748190100
B61: -372.44 | C61: -2.278482213e+11 | D61: -372.44 | E61: -2.362386138e+11 | F61: -372.44 | G61: -2.446290063e+11 | H61: -372.44 | I61: -151680876900 | J61: -372.44 | K61: -8.45577369e+10
B62: -371.62 | C62: -2.274673149e+11 | D62: -371.62 | E62: -2.358577074e+11 | F62: -371.62 | G62: -2.442480999e+11 | H62: -371.62 | I62: -1.514904237e+11 | J62: -371.62 | K62: -8.43672837e+10
B63: -370.8 | C63: -227086408500 | D63: -370.8 | E63: -235476801000 | F63: -370.8 | G63: -243867193500 | H63: -370.8 | I63: -151299970500 | J63: -370.8 | K63: -84176830500
B64: -369.98 | C64: -2.267055021e+11 | D64: -369.98 | E64: -2.350958946e+11 | F64: -369.98 | G64: -2.434862871e+11 | H64: -369.98 | I64: -1.511095173e+11 | J64: -369.98 | K64: -8.39863773e+10
B65: -369.16 | C65: -2.263245957e+11 | D65: -369.16 | E65: -2.347149882e+11 | F65: -369.16 | G65: -2.431053807e+11 | H65: -369.16 | I65: -1.509190641e+11 | J65: -369.16 | K65: -8.37959241e+10
B66: -368.34 | C66: -2.259436893e+11 | D66: -368.34 | E66: -2.343340818e+11 | F66: -368.34 | G66: -2.427244743e+11 | H66: -368.34 | I66: -1.507286109e+11 | J66: -368.34 | K66: -8.36054709e+10
B67: -367.52 | C67: -2.255627829e+11 | D67: -367.52 | E67: -2.339531754e+11 | F67: -367.52 | G67: -2.423435679e+11 | H67: -367.52 | I67: -150538157700 | J67: -367.52 | K67: -8.34150177e+10
B68: -366.7 | C68: -2.251818765e+11 | D68: -366.7 | E68: -2.33572269e+11 | F68: -366.7 | G68: -2.419626615e+11 | H68: -366.7 | I68: -1.503477045e+11 | J68: -366.7 | K68: -8.32245645e+10
B69: -365.88 | C69: -2.248009701e+11 | D69: -365.88 | E69: -2.331913626e+11 | F69: -365.88 | G69: -2.415817551e+11 | H69: -365.88 | I69: -1.501572513e+11 | J69: -365.88 | K69: -8.30341113e+10
B70: -365.06 | C70: -2.244200637e+11 | D70: -365.06 | E70: -2.328104562e+11 | F70: -365.06 | G70: -2.412008487e+11 | H70: -365.06 | I70: -1.499667981e+11 | J70: -365.06 | K70: -8.28436581e+10
B71: -364.24 | C71: -224039157300 | D71: -364.24 | E71: -232429549800 | F71: -364.24 | G71: -240819942300 | H71: -364.24 | I71: -149776344900 | J71: -364.24 | K71: -82653204900
B72: -363.42 | C72: -2.236582509e+11 | D72: -363.42 | E72: -2.320486434e+11 | F72: -363.42 | G72: -2.404390359e+11 | H72: -363.42 | I72: -149585891700 | J72: -363.42 | K72: -8.24627517e+10
B73: -362.6 | C73: -223277344500 | D73: -362.6 | E73: -231667737000 | F73: -362.6 | G73: -240058129500 | H73: -362.6 | I73: -149395438500 | J73: -362.6 | K73: -82272298500
B74: -361.78 | C74: -2.228964381e+11 | D74: -361.78 | E74: -2.312868306e+11 | F74: -361.78 | G74: -2.396772231e+11 | H74: -361.78 | I74: -149204985300 | J74: -361.78 | K74: -8.20818453e+10
B75: -360.96 | C75: -2.225155317e+11 | D75: -360.96 | E75: -2.309059242e+11 | F75: -360.96 | G75: -2.392963167e+11 | H75: -360.96 | I75: -1.490145321e+11 | J75: -360.96 | K75: -8.18913921e+10
B76: -360.14 | C76: -2.221346253e+11 | D76: -360.14 | E76: -2.305250178e+11 | F76: -360.14 | G76: -2.389154103e+11 | H76: -360.14 | I76: -148824078900 | J76: -360.14 | K76: -8.17009389e+10
B77: -359.32 | C77: -2.217537189e+11 | D77: -359.32 | E77: -2.301441114e+11 | F77: -359.32 | G77: -2.385345039e+11 | H77: -359.32 | I77: -1.486336257e+11 | J77: -359.32 | K77: -8.15104857e+10
B78: -358.5 | C78: -2.213728125e+11 | D78: -358.5 | E78: -2.29763205e+11 | F78: -358.5 | G78: -2.381535975e+11 | H78: -358.5 | I78: -148443172500 | J78: -358.5 | K78: -8.13200325e+10
B79: -357.68 | C79: -220991906100 | D79: -357.68 | E79: -229382298600 | F79: -357.68 | G79: -237772691100 | H79: -357.68 | I79: -148252719300 | J79: -357.68 | K79: -81129579300
B80: -356.86 | C80: -2.206109997e+11 | D80: -356.86 | E80: -2.290013922e+11 | F80: -356.86 | G80: -2.373917847e+11 | H80: -356.86 | I80: -1.480622661e+11 | J80: -356.86 | K80: -8.09391261e+10
B81: -356.04 | C81: -2.202300933e+11 | D81: -356.04 | E81: -2.286204858e+11 | F81: -356.04 | G81: -2.370108783e+11 | H81: -356.04 | I81: -1.478718129e+11 | J81: -356.04 | K81: -8.07486729e+10
B82: -355.22 | C82: -219849186900 | D82: -355.22 | E82: -228239579400 | F82: -355.22 | G82: -236629971900 | H82: -355.22 | I82: -147681359700 | J82: -355.22 | K82: -80558219700
B83: -354.4 | C83: -219468280500 | D83: -354.4 | E83: -227858673000 | F83: -354.4 | G83: -236249065500 | H83: -354.4 | I83: -147490906500 | J83: -354.4 | K83: -80367766500
B84: -353.58 | C84: -2.190873741e+11 | D84: -353.58 | E84: -2.274777666e+11 | F84: -353.58 | G84: -2.358681591e+11 | H84: -353.58 | I84: -147300453300 | J84: -353.58 | K84: -8.01773133e+10
B85: -352.76 | C85: -218706467700 | D85: -352.76 | E85: -227096860200 | F85: -352.76 | G85: -235487252700 | H85: -352.76 | I85: -147110000100 | J85: -352.76 | K85: -79986860100
B86: -351.94 | C86: -218325561300 | D86: -351.94 | E86: -226715953800 | F86: -351.94 | G86: -235106346300 | H86: -351.94 | I86: -146919546900 | J86: -351.94 | K86: -79796406900
B87: -351.12 | C87: -2.179446549e+11 | D87: -351.12 | E87: -2.263350474e+11 | F87: -351.12 | G87: -2.347254399e+11 | H87: -351.12 | I87: -146729093700 | J87: -351.12 | K87: -7.96059537e+10
B88: -350.3 | C88: -2.175637485e+11 | D88: -350.3 | E88: -2.25954141e+11 | F88: -350.3 | G88: -2.343445335e+11 | H88: -350.3 | I88: -1.465386405e+11 | J88: -350.3 | K88: -7.94155005e+10
B89: -349.48 | C89: -217182842100 | D89: -349.48 | E89: -225573234600 | F89: -349.48 | G89: -233963627100 | H89: -349.48 | I89: -146348187300 | J89: -349.48 | K89: -79225047300
B90: -348.66 | C90: -2.168019357e+11 | D90: -348.66 | E90: -2.251923282e+11 | F90: -348.66 | G90: -2.335827207e+11 | H90: -348.66 | I90: -1.461577341e+11 | J90: -348.66 | K90: -7.90345941e+10
B91: -347.84 | C91: -2.164210293e+11 | D91: -347.84 | E91: -2.248114218e+11 | F91: -347.84 | G91: -2.332018143e+11 | H91: -347.84 | I91: -1.459672809e+11 | J91: -347.84 | K91: -7.88441409e+10
B92: -347.02 | C92: -2.160401229e+11 | D92: -347.02 | E92: -2.244305154e+11 | F92: -347.02 | G92: -2.328209079e+11 | H92: -347.02 | I92: -1.457768277e+11 | J92: -347.02 | K92: -7.86536877e+10
B93: -346.2 | C93: -2.156592165e+11 | D93: -346.2 | E93: -2.24049609e+11 | F93: -346.2 | G93: -2.324400015e+11 | H93: -346.2 | I93: -1.455863745e+11 | J93: -346.2 | K93: -7.84632345e+10
B94: -345.38 | C94: -215278310100 | D94: -345.38 | E94: -223668702600 | F94: -345.38 | G94: -232059095100 | H94: -345.38 | I94: -145395921300 | J94: -345.38 | K94: -78272781300
B95: -344.56 | C95: -2.148974037e+11 | D95: -344.56 | E95: -2.232877962e+11 | F95: -344.56 | G95: -2.316781887e+11 | H95: -344.56 | I95: -1.452054681e+11 | J95: -344.56 | K95: -7.80823281e+10
B96: -343.74 | C96: -214516497300 | D96: -343.74 | E96: -222906889800 | F96: -343.74 | G96: -231297282300 | H96: -343.74 | I96: -145015014900 | J96: -343.74 | K96: -77891874900
B97: -342.92 | C97: -214135590900 | D97: -342.92 | E97: -222525983400 | F97: -342.92 | G97: -230916375900 | H97: -342.92 | I97: -144824561700 | J97: -342.92 | K97: -77701421700
B98: -342.1 | C98: -2.137546845e+11 | D98: -342.1 | E98: -2.22145077e+11 | F98: -342.1 | G98: -2.305354695e+11 | H98: -342.1 | I98: -1.446341085e+11 | J98: -342.1 | K98: -7.75109685e+10
B99: -341.28 | C99: -2.133737781e+11 | D99: -341.28 | E99: -2.217641706e+11 | F99: -341.28 | G99: -2.301545631e+11 | H99: -341.28 | I99: -1.444436553e+11 | J99: -341.28 | K99: -7.73205153e+10
B100: -340.46 | C100: -212992871700 | D100: -340.46 | E100: -221383264200 | F100: -340.46 | G100: -229773656700 | H100: -340.46 | I100: -144253202100 | J100: -340.46 | K100: -77130062100
B101: -339.64 | C101: -2.126119653e+11 | D101: -339.64 | E101: -2.210023578e+11 | F101: -339.64 | G101: -2.293927503e+11 | H101: -339.64 | I101: -1.440627489e+11 | J101: -339.64 | K101: -7.69396089e+10
B102: -338.82 | C102: -212231058900 | D102: -338.82 | E102: -220621451400 | F102: -338.82 | G102: -229011843900 | H102: -338.82 | I102: -143872295700 | J102: -338.82 | K102: -76749155700
B103: -338 | C103: -211850152500 | D103: -338 | E103: -220240545000 | F103: -338 | G103: -228630937500 | H103: -338 | I103: -143681842500 | J103: -338 | K103: -76558702500
B104: -337.18 | C104: -2.114692461e+11 | D104: -337.18 | E104: -2.198596386e+11 | F104: -337.18 | G104: -2.282500311e+11 | H104: -337.18 | I104: -1.434913893e+11 | J104: -337.18 | K104: -7.63682493e+10
B105: -336.36 | C105: -2.110883397e+11 | D105: -336.36 | E105: -2.194787322e+11 | F105: -336.36 | G105: -2.278691247e+11 | H105: -336.36 | I105: -1.433009361e+11 | J105: -336.36 | K105: -7.61777961e+10
B106: -335.54 | C106: -210707433300 | D106: -335.54 | E106: -219097825800 | F106: -335.54 | G106: -227488218300 | H106: -335.54 | I106: -143110482900 | J106: -335.54 | K106: -75987342900
B107: -334.72 | C107: -210326526900 | D107: -334.72 | E107: -218716919400 | F107: -334.72 | G107: -227107311900 | H107: -334.72 | I107: -142920029700 | J107: -334.72 | K107: -75796889700
B108: -333.9 | C108: -2.099456205e+11 | D108: -333.9 | E108: -2.18336013e+11 | F108: -333.9 | G108: -2.267264055e+11 | H108: -333.9 | I108: -1.427295765e+11 | J108: -333.9 | K108: -7.56064365e+10
B109: -333.08 | C109: -2.095647141e+11 | D109: -333.08 | E109: -2.179551066e+11 | F109: -333.08 | G109: -2.263454991e+11 | H109: -333.08 | I109: -142539123300 | J109: -333.08 | K109: -7.54159833e+10
B110: -332.26 | C110: -2.091838077e+11 | D110: -332.26 | E110: -2.175742002e+11 | F110: -332.26 | G110: -2.259645927e+11 | H110: -332.26 | I110: -1.423486701e+11 | J110: -332.26 | K110: -7.52255301e+10
B111: -331.44 | C111: -208802901300 | D111: -331.44 | E111: -217193293800 | F111: -331.44 | G111: -225583686300 | H111: -331.44 | I111: -142158216900 | J111: -331.44 | K111: -75035076900
B112: -330.62 | C112: -208421994900 | D112: -330.62 | E112: -216812387400 | F112: -330.62 | G112: -225202779900 | H112: -330.62 | I112: -141967763700 | J112: -330.62 | K112: -74844623700
B113: -329.8 | C113: -208041088500 | D113: -329.8 | E113: -216431481000 | F113: -329.8 | G113: -224821873500 | H113: -329.8 | I113: -141777310500 | J113: -329.8 | K113: -74654170500
B114: -328.98 | C114: -207660182100 | D114: -328.98 | E114: -216050574600 | F114: -328.98 | G114: -224440967100 | H114: -328.98 | I114: -141586857300 | J114: -328.98 | K114: -74463717300
B115: -328.16 | C115: -207279275700 | D115: -328.16 | E115: -215669668200 | F115: -328.16 | G115: -224060060700 | H115: -328.16 | I115: -141396404100 | J115: -328.16 | K115: -74273264100
B116: -327.34 | C116: -2.068983693e+11 | D116: -327.34 | E116: -2.152887618e+11 | F116: -327.34 | G116: -2.236791543e+11 | H116: -327.34 | I116: -141205950900 | J116: -327.34 | K116: -7.40828109e+10
B117: -326.52 | C117: -206517462900 | D117: -326.52 | E117: -214907855400 | F117: -326.52 | G117: -223298247900 | H117: -326.52 | I117: -141015497700 | J117: -326.52 | K117: -73892357700
B118: -325.7 | C118: -206136556500 | D118: -325.7 | E118: -214526949000 | F118: -325.7 | G118: -222917341500 | H118: -325.7 | I118: -140825044500 | J118: -325.7 | K118: -73701904500
B119: -324.88 | C119: -205755650100 | D119: -324.88 | E119: -214146042600 | F119: -324.88 | G119: -222536435100 | H119: -324.88 | I119: -140634591300 | J119: -324.88 | K119: -73511451300
B120: -324.06 | C120: -205374743700 | D120: -324.06 | E120: -213765136200 | F120: -324.06 | G120: -222155528700 | H120: -324.06 | I120: -140444138100 | J120: -324.06 | K120: -73320998100
B121: -323.24 | C121: -2.049938373e+11 | D121: -323.24 | E121: -2.133842298e+11 | F121: -323.24 | G121: -2.217746223e+11 | H121: -323.24 | I121: -1.402536849e+11 | J121: -323.24 | K121: -7.31305449e+10
B122: -322.42 | C122: -204612930900 | D122: -322.42 | E122: -213003323400 | F122: -322.42 | G122: -221393715900 | H122: -322.42 | I122: -140063231700 | J122: -322.42 | K122: -72940091700
B123: -321.6 | C123: -204232024500 | D123: -321.6 | E123: -212622417000 | F123: -321.6 | G123: -221012809500 | H123: -321.6 | I123: -139872778500 | J123: -321.6 | K123: -72749638500
B124: -320.78 | C124: -2.038511181e+11 | D124: -320.78 | E124: -2.122415106e+11 | F124: -320.78 | G124: -2.206319031e+11 | H124: -320.78 | I124: -139682325300 | J124: -320.78 | K124: -7.25591853e+10
B125: -319.96 | C125: -2.034702117e+11 | D125: -319.96 | E125: -2.118606042e+11 | F125: -319.96 | G125: -2.202509967e+11 | H125: -319.96 | I125: -1.394918721e+11 | J125: -319.96 | K125: -7.23687321e+10
B126: -319.14 | C126: -2.030893053e+11 | D126: -319.14 | E126: -2.114796978e+11 | F126: -319.14 | G126: -2.198700903e+11 | H126: -319.14 | I126: -139301418900 | J126: -319.14 | K126: -7.21782789e+10
B127: -318.32 | C127: -2.027083989e+11 | D127: -318.32 | E127: -2.110987914e+11 | F127: -318.32 | G127: -2.194891839e+11 | H127: -318.32 | I127: -139110965700 | J127: -318.32 | K127: -7.19878257e+10
B128: -317.5 | C128: -202327492500 | D128: -317.5 | E128: -210717885000 | F128: -317.5 | G128: -219108277500 | H128: -317.5 | I128: -138920512500 | J128: -317.5 | K128: -71797372500
B129: -316.68 | C129: -2.019465861e+11 | D129: -316.68 | E129: -2.103369786e+11 | F129: -316.68 | G129: -2.187273711e+11 | H129: -316.68 | I129: -1.387300593e+11 | J129: -316.68 | K129: -7.16069193e+10
B130: -315.86 | C130: -201565679700 | D130: -315.86 | E130: -209956072200 | F130: -315.86 | G130: -218346464700 | H130: -315.86 | I130: -138539606100 | J130: -315.86 | K130: -71416466100
B131: -315.04 | C131: -2.011847733e+11 | D131: -315.04 | E131: -2.095751658e+11 | F131: -315.04 | G131: -2.179655583e+11 | H131: -315.04 | I131: -1.383491529e+11 | J131: -315.04 | K131: -7.12260129e+10
B132: -314.22 | C132: -2.008038669e+11 | D132: -314.22 | E132: -2.091942594e+11 | F132: -314.22 | G132: -2.175846519e+11 | H132: -314.22 | I132: -1.381586997e+11 | J132: -314.22 | K132: -7.10355597e+10
B133: -313.4 | C133: -2.004229605e+11 | D133: -313.4 | E133: -2.08813353e+11 | F133: -313.4 | G133: -2.172037455e+11 | H133: -313.4 | I133: -1.379682465e+11 | J133: -313.4 | K133: -7.08451065e+10
B134: -312.58 | C134: -2.000420541e+11 | D134: -312.58 | E134: -2.084324466e+11 | F134: -312.58 | G134: -2.168228391e+11 | H134: -312.58 | I134: -137777793300 | J134: -312.58 | K134: -7.06546533e+10
B135: -311.76 | C135: -199661147700 | D135: -311.76 | E135: -208051540200 | F135: -311.76 | G135: -216441932700 | H135: -311.76 | I135: -137587340100 | J135: -311.76 | K135: -70464200100
B136: -310.94 | C136: -199280241300 | D136: -310.94 | E136: -207670633800 | F136: -310.94 | G136: -216061026300 | H136: -310.94 | I136: -137396886900 | J136: -310.94 | K136: -70273746900
B137: -310.12 | C137: -1.988993349e+11 | D137: -310.12 | E137: -2.072897274e+11 | F137: -310.12 | G137: -2.156801199e+11 | H137: -310.12 | I137: -1.372064337e+11 | J137: -310.12 | K137: -7.00832937e+10
B138: -309.3 | C138: -1.985184285e+11 | D138: -309.3 | E138: -2.06908821e+11 | F138: -309.3 | G138: -2.152992135e+11 | H138: -309.3 | I138: -1.370159805e+11 | J138: -309.3 | K138: -6.98928405e+10
B139: -308.48 | C139: -198137522100 | D139: -308.48 | E139: -206527914600 | F139: -308.48 | G139: -214918307100 | H139: -308.48 | I139: -136825527300 | J139: -308.48 | K139: -69702387300
B140: -307.66 | C140: -197756615700 | D140: -307.66 | E140: -206147008200 | F140: -307.66 | G140: -214537400700 | H140: -307.66 | I140: -136635074100 | J140: -307.66 | K140: -69511934100
B141: -306.84 | C141: -197375709300 | D141: -306.84 | E141: -205766101800 | F141: -306.84 | G141: -214156494300 | H141: -306.84 | I141: -136444620900 | J141: -306.84 | K141: -69321480900
B142: -306.02 | C142: -1.969948029e+11 | D142: -306.02 | E142: -2.053851954e+11 | F142: -306.02 | G142: -2.137755879e+11 | H142: -306.02 | I142: -1.362541677e+11 | J142: -306.02 | K142: -6.91310277e+10
B143: -305.2 | C143: -1.966138965e+11 | D143: -305.2 | E143: -2.05004289e+11 | F143: -305.2 | G143: -2.133946815e+11 | H143: -305.2 | I143: -1.360637145e+11 | J143: -305.2 | K143: -6.89405745e+10
B144: -304.38 | C144: -1.962329901e+11 | D144: -304.38 | E144: -2.046233826e+11 | F144: -304.38 | G144: -2.130137751e+11 | H144: -304.38 | I144: -1.358732613e+11 | J144: -304.38 | K144: -6.87501213e+10
B145: -303.56 | C145: -195852083700 | D145: -303.56 | E145: -204242476200 | F145: -303.56 | G145: -212632868700 | H145: -303.56 | I145: -135682808100 | J145: -303.56 | K145: -68559668100
B146: -302.74 | C146: -195471177300 | D146: -302.74 | E146: -203861569800 | F146: -302.74 | G146: -212251962300 | H146: -302.74 | I146: -135492354900 | J146: -302.74 | K146: -68369214900
B147: -301.92 | C147: -195090270900 | D147: -301.92 | E147: -203480663400 | F147: -301.92 | G147: -211871055900 | H147: -301.92 | I147: -135301901700 | J147: -301.92 | K147: -68178761700
B148: -301.1 | C148: -194709364500 | D148: -301.1 | E148: -203099757000 | F148: -301.1 | G148: -211490149500 | H148: -301.1 | I148: -135111448500 | J148: -301.1 | K148: -67988308500
B149: -300.28 | C149: -1.943284581e+11 | D149: -300.28 | E149: -2.027188506e+11 | F149: -300.28 | G149: -2.111092431e+11 | H149: -300.28 | I149: -1.349209953e+11 | J149: -300.28 | K149: -6.77978553e+10
B150: -299.46 | C150: -1.939475517e+11 | D150: -299.46 | E150: -2.023379442e+11 | F150: -299.46 | G150: -2.107283367e+11 | H150: -299.46 | I150: -1.347305421e+11 | J150: -299.46 | K150: -6.76074021e+10
B151: -298.64 | C151: -193566645300 | D151: -298.64 | E151: -201957037800 | F151: -298.64 | G151: -210347430300 | H151: -298.64 | I151: -134540088900 | J151: -298.64 | K151: -67416948900
B152: -297.82 | C152: -193185738900 | D152: -297.82 | E152: -201576131400 | F152: -297.82 | G152: -209966523900 | H152: -297.82 | I152: -134349635700 | J152: -297.82 | K152: -67226495700
B153: -297 | C153: -192804832500 | D153: -297 | E153: -201195225000 | F153: -297 | G153: -209585617500 | H153: -297 | I153: -134159182500 | J153: -297 | K153: -67036042500
B154: -296.18 | C154: -192423926100 | D154: -296.18 | E154: -200814318600 | F154: -296.18 | G154: -209204711100 | H154: -296.18 | I154: -133968729300 | J154: -296.18 | K154: -66845589300
B155: -295.36 | C155: -192043019700 | D155: -295.36 | E155: -200433412200 | F155: -295.36 | G155: -208823804700 | H155: -295.36 | I155: -133778276100 | J155: -295.36 | K155: -66655136100
B156: -294.54 | C156: -191662113300 | D156: -294.54 | E156: -200052505800 | F156: -294.54 | G156: -208442898300 | H156: -294.54 | I156: -133587822900 | J156: -294.54 | K156: -66464682900
B157: -293.72 | C157: -1.912812069e+11 | D157: -293.72 | E157: -1.996715994e+11 | F157: -293.72 | G157: -2.080619919e+11 | H157: -293.72 | I157: -1.333973697e+11 | J157: -293.72 | K157: -6.62742297e+10
B158: -292.9 | C158: -1.909003005e+11 | D158: -292.9 | E158: -1.99290693e+11 | F158: -292.9 | G158: -2.076810855e+11 | H158: -292.9 | I158: -1.332069165e+11 | J158: -292.9 | K158: -6.60837765e+10
B159: -292.08 | C159: -1.905193941e+11 | D159: -292.08 | E159: -1.989097866e+11 | F159: -292.08 | G159: -2.073001791e+11 | H159: -292.08 | I159: -1.330164633e+11 | J159: -292.08 | K159: -6.58933233e+10
B160: -291.26 | C160: -1.901384877e+11 | D160: -291.26 | E160: -1.985288802e+11 | F160: -291.26 | G160: -2.069192727e+11 | H160: -291.26 | I160: -1.328260101e+11 | J160: -291.26 | K160: -6.57028701e+10
B161: -290.44 | C161: -1.897575813e+11 | D161: -290.44 | E161: -1.981479738e+11 | F161: -290.44 | G161: -2.065383663e+11 | H161: -290.44 | I161: -1.326355569e+11 | J161: -290.44 | K161: -6.55124169e+10
B162: -289.62 | C162: -1.893766749e+11 | D162: -289.62 | E162: -1.977670674e+11 | F162: -289.62 | G162: -2.061574599e+11 | H162: -289.62 | I162: -1.324451037e+11 | J162: -289.62 | K162: -6.53219637e+10
B163: -288.8 | C163: -188995768500 | D163: -288.8 | E163: -197386161000 | F163: -288.8 | G163: -205776553500 | H163: -288.8 | I163: -132254650500 | J163: -288.8 | K163: -65131510500
B164: -287.98 | C164: -1.886148621e+11 | D164: -287.98 | E164: -1.970052546e+11 | F164: -287.98 | G164: -2.053956471e+11 | H164: -287.98 | I164: -1.320641973e+11 | J164: -287.98 | K164: -6.49410573e+10
B165: -287.16 | C165: -1.882339557e+11 | D165: -287.16 | E165: -1.966243482e+11 | F165: -287.16 | G165: -2.050147407e+11 | H165: -287.16 | I165: -1.318737441e+11 | J165: -287.16 | K165: -6.47506041e+10
B166: -286.34 | C166: -187853049300 | D166: -286.34 | E166: -196243441800 | F166: -286.34 | G166: -204633834300 | H166: -286.34 | I166: -131683290900 | J166: -286.34 | K166: -64560150900
B167: -285.52 | C167: -1.874721429e+11 | D167: -285.52 | E167: -1.958625354e+11 | F167: -285.52 | G167: -2.042529279e+11 | H167: -285.52 | I167: -1.314928377e+11 | J167: -285.52 | K167: -6.43696977e+10
B168: -284.7 | C168: -1.870912365e+11 | D168: -284.7 | E168: -1.95481629e+11 | F168: -284.7 | G168: -2.038720215e+11 | H168: -284.7 | I168: -1.313023845e+11 | J168: -284.7 | K168: -6.41792445e+10
B169: -283.88 | C169: -186710330100 | D169: -283.88 | E169: -195100722600 | F169: -283.88 | G169: -203491115100 | H169: -283.88 | I169: -131111931300 | J169: -283.88 | K169: -63988791300
B170: -283.06 | C170: -186329423700 | D170: -283.06 | E170: -194719816200 | F170: -283.06 | G170: -203110208700 | H170: -283.06 | I170: -130921478100 | J170: -283.06 | K170: -63798338100
B171: -282.24 | C171: -185948517300 | D171: -282.24 | E171: -194338909800 | F171: -282.24 | G171: -202729302300 | H171: -282.24 | I171: -130731024900 | J171: -282.24 | K171: -63607884900
B172: -281.42 | C172: -185567610900 | D172: -281.42 | E172: -193958003400 | F172: -281.42 | G172: -202348395900 | H172: -281.42 | I172: -130540571700 | J172: -281.42 | K172: -63417431700
B173: -280.6 | C173: -1.851867045e+11 | D173: -280.6 | E173: -1.93577097e+11 | F173: -280.6 | G173: -2.019674895e+11 | H173: -280.6 | I173: -1.303501185e+11 | J173: -280.6 | K173: -6.32269785e+10
B174: -279.78 | C174: -184805798100 | D174: -279.78 | E174: -193196190600 | F174: -279.78 | G174: -201586583100 | H174: -279.78 | I174: -130159665300 | J174: -279.78 | K174: -63036525300
B175: -278.96 | C175: -1.844248917e+11 | D175: -278.96 | E175: -1.928152842e+11 | F175: -278.96 | G175: -2.012056767e+11 | H175: -278.96 | I175: -1.299692121e+11 | J175: -278.96 | K175: -6.28460721e+10
B176: -278.14 | C176: -1.840439853e+11 | D176: -278.14 | E176: -1.924343778e+11 | F176: -278.14 | G176: -2.008247703e+11 | H176: -278.14 | I176: -1.297787589e+11 | J176: -278.14 | K176: -6.26556189e+10
B177: -277.32 | C177: -1.836630789e+11 | D177: -277.32 | E177: -1.920534714e+11 | F177: -277.32 | G177: -2.004438639e+11 | H177: -277.32 | I177: -1.295883057e+11 | J177: -277.32 | K177: -6.24651657e+10
B178: -276.5 | C178: -1.832821725e+11 | D178: -276.5 | E178: -1.91672565e+11 | F178: -276.5 | G178: -2.000629575e+11 | H178: -276.5 | I178: -1.293978525e+11 | J178: -276.5 | K178: -6.22747125e+10
B179: -275.68 | C179: -1.829012661e+11 | D179: -275.68 | E179: -1.912916586e+11 | F179: -275.68 | G179: -1.996820511e+11 | H179: -275.68 | I179: -1.292073993e+11 | J179: -275.68 | K179: -6.20842593e+10
B180: -274.86 | C180: -182520359700 | D180: -274.86 | E180: -190910752200 | F180: -274.86 | G180: -199301144700 | H180: -274.86 | I180: -129016946100 | J180: -274.86 | K180: -61893806100
B181: -274.04 | C181: -182139453300 | D181: -274.04 | E181: -190529845800 | F181: -274.04 | G181: -198920238300 | H181: -274.04 | I181: -128826492900 | J181: -274.04 | K181: -61703352900
B182: -273.22 | C182: -181758546900 | D182: -273.22 | E182: -190148939400 | F182: -273.22 | G182: -198539331900 | H182: -273.22 | I182: -128636039700 | J182: -273.22 | K182: -61512899700
B183: -272.4 | C183: -1.813776405e+11 | D183: -272.4 | E183: -1.89768033e+11 | F183: -272.4 | G183: -1.981584255e+11 | H183: -272.4 | I183: -1.284455865e+11 | J183: -272.4 | K183: -6.13224465e+10
B184: -271.58 | C184: -1.809967341e+11 | D184: -271.58 | E184: -1.893871266e+11 | F184: -271.58 | G184: -1.977775191e+11 | H184: -271.58 | I184: -1.282551333e+11 | J184: -271.58 | K184: -6.11319933e+10
B185: -270.76 | C185: -180615827700 | D185: -270.76 | E185: -189006220200 | F185: -270.76 | G185: -197396612700 | H185: -270.76 | I185: -128064680100 | J185: -270.76 | K185: -60941540100
B186: -269.94 | C186: -180234921300 | D186: -269.94 | E186: -188625313800 | F186: -269.94 | G186: -197015706300 | H186: -269.94 | I186: -127874226900 | J186: -269.94 | K186: -60751086900
B187: -269.12 | C187: -179854014900 | D187: -269.12 | E187: -188244407400 | F187: -269.12 | G187: -196634799900 | H187: -269.12 | I187: -127683773700 | J187: -269.12 | K187: -60560633700
B188: -268.3 | C188: -179473108500 | D188: -268.3 | E188: -187863501000 | F188: -268.3 | G188: -196253893500 | H188: -268.3 | I188: -127493320500 | J188: -268.3 | K188: -60370180500
B189: -267.48 | C189: -179092202100 | D189: -267.48 | E189: -187482594600 | F189: -267.48 | G189: -195872987100 | H189: -267.48 | I189: -127302867300 | J189: -267.48 | K189: -60179727300
B190: -266.66 | C190: -1.787112957e+11 | D190: -266.66 | E190: -1.871016882e+11 | F190: -266.66 | G190: -1.954920807e+11 | H190: -266.66 | I190: -1.271124141e+11 | J190: -266.66 | K190: -5.99892741e+10
B191: -265.84 | C191: -178330389300 | D191: -265.84 | E191: -186720781800 | F191: -265.84 | G191: -195111174300 | H191: -265.84 | I191: -126921960900 | J191: -265.84 | K191: -59798820900
B192: -265.02 | C192: -1.779494829e+11 | D192: -265.02 | E192: -1.863398754e+11 | F192: -265.02 | G192: -1.947302679e+11 | H192: -265.02 | I192: -1.267315077e+11 | J192: -265.02 | K192: -5.96083677e+10
B193: -264.2 | C193: -177568576500 | D193: -264.2 | E193: -185958969000 | F193: -264.2 | G193: -194349361500 | H193: -264.2 | I193: -126541054500 | J193: -264.2 | K193: -59417914500
B194: -263.38 | C194: -1.771876701e+11 | D194: -263.38 | E194: -1.855780626e+11 | F194: -263.38 | G194: -1.939684551e+11 | H194: -263.38 | I194: -1.263506013e+11 | J194: -263.38 | K194: -5.92274613e+10
B195: -262.56 | C195: -1.768067637e+11 | D195: -262.56 | E195: -1.851971562e+11 | F195: -262.56 | G195: -1.935875487e+11 | H195: -262.56 | I195: -1.261601481e+11 | J195: -262.56 | K195: -5.90370081e+10
B196: -261.74 | C196: -1.764258573e+11 | D196: -261.74 | E196: -1.848162498e+11 | F196: -261.74 | G196: -1.932066423e+11 | H196: -261.74 | I196: -1.259696949e+11 | J196: -261.74 | K196: -5.88465549e+10
B197: -260.92 | C197: -1.760449509e+11 | D197: -260.92 | E197: -1.844353434e+11 | F197: -260.92 | G197: -1.928257359e+11 | H197: -260.92 | I197: -1.257792417e+11 | J197: -260.92 | K197: -5.86561017e+10
B198: -260.1 | C198: -175664044500 | D198: -260.1 | E198: -184054437000 | F198: -260.1 | G198: -192444829500 | H198: -260.1 | I198: -125588788500 | J198: -260.1 | K198: -58465648500
B199: -259.28 | C199: -1.752831381e+11 | D199: -259.28 | E199: -1.836735306e+11 | F199: -259.28 | G199: -1.920639231e+11 | H199: -259.28 | I199: -1.253983353e+11 | J199: -259.28 | K199: -5.82751953e+10
B200: -258.46 | C200: -174902231700 | D200: -258.46 | E200: -183292624200 | F200: -258.46 | G200: -191683016700 | H200: -258.46 | I200: -125207882100 | J200: -258.46 | K200: -58084742100
B201: -257.64 | C201: -1.745213253e+11 | D201: -257.64 | E201: -1.829117178e+11 | F201: -257.64 | G201: -1.913021103e+11 | H201: -257.64 | I201: -1.250174289e+11 | J201: -257.64 | K201: -5.78942889e+10
... 802 more rows
